[Event "*** Titled Tuesday 3|2 Blitz"]
[Site "Chess.com"]
[Date "2016.06.07"]
[Round "6"]
[White "StoreySniper"]
[Black "profofchess"]
[Result "1-0"]
[WhiteElo "2326"]
[BlackElo "2312"]
[TimeControl "180+2"]
[EndTime "12:13:28 PDT"]
[Termination "StoreySniper won by resignation"]

1. e4 {[%clk 0:03:01.9]} 1... e6 {[%clk 0:03:00.8]} 2. d4 {[%clk 0:03:02.3]}
2... d5 {[%clk 0:03:02.4]} 3. Nd2 {[%clk 0:03:03.2]} 3... Nf6 {[%clk 0:03:03]}
4. e5 {[%clk 0:03:04.3]} 4... Nfd7 {[%clk 0:03:04.1]} 5. f4 {[%clk 0:03:06]}
5... c5 {[%clk 0:03:05.3]} 6. c3 {[%clk 0:03:07.9]} 6... Nc6 {[%clk 0:03:06.5]}
7. Ndf3 {[%clk 0:03:09.5]} 7... Qb6 {[%clk 0:03:04.4]} 8. h4 {[%clk 0:03:09.3]}
8... Be7 {[%clk 0:03:02.4]} 9. Rh3 {[%clk 0:03:10.4]} 9... f6 {[%clk 0:02:37.8]}
10. Rg3 {[%clk 0:03:03.5]} 10... O-O {[%clk 0:02:36.2]} 11. h5 {[%clk
0:02:59.1]} 11... cxd4 {[%clk 0:02:26.8]} 12. cxd4 {[%clk 0:02:58.9]} 12... fxe5
{[%clk 0:02:17.9]} 13. fxe5 {[%clk 0:02:59]} 13... Bb4+ {[%clk 0:01:48.8]} 14.
Ke2 {[%clk 0:02:52.7]} 14... Rf7 {[%clk 0:01:17]} 15. Be3 {[%clk 0:02:40.4]}
15... Bf8 {[%clk 0:01:17]} 16. Qb1 {[%clk 0:02:35.2]} 16... Ndxe5 {[%clk
0:00:35.5]} 17. Nxe5 {[%clk 0:02:31.4]} 17... Nxe5 {[%clk 0:00:36.2]} 18. dxe5
{[%clk 0:02:32]} 18... d4 {[%clk 0:00:37.6]} 19. Bd2 {[%clk 0:02:14.7]} 19...
Bd7 {[%clk 0:00:35.4]} 20. Nf3 {[%clk 0:02:14.7]} 20... Rc8 {[%clk 0:00:28.1]}
21. Kf2 {[%clk 0:02:08.8]} 21... d3+ {[%clk 0:00:21.9]} 22. Be3 {[%clk
0:02:05.6]} 22... Rc2+ {[%clk 0:00:22.9]} 23. Qxc2 {[%clk 0:02:06.7]} 23... dxc2
{[%clk 0:00:19.4]} 24. Bxb6 {[%clk 0:02:07.1]} 24... axb6 {[%clk 0:00:21.3]} 25.
Bd3 {[%clk 0:02:04.8]} 25... Bc5+ {[%clk 0:00:22]} 26. Ke2 {[%clk 0:02:02.5]}
26... Bc6 {[%clk 0:00:11.6]} 27. Bxc2 {[%clk 0:02:01.9]} 1-0

[Event "*** Titled Tuesday 3|2 Blitz"]
[Site "Chess.com"]
[Date "2016.06.07"]
[Round "6"]
[White "alturas_pacificas"]
[Black "norwaytoadog"]
[Result "1-0"]
[WhiteElo "2174"]
[BlackElo "2031"]
[TimeControl "180+2"]
[EndTime "12:13:46 PDT"]
[Termination "alturas_pacificas won by checkmate"]

1. d4 {[%clk 0:03:01.9]} 1... Nf6 {[%clk 0:02:59.1]} 2. Bf4 {[%clk 0:03:02.9]}
2... d5 {[%clk 0:02:54.4]} 3. e3 {[%clk 0:03:03.9]} 3... Nc6 {[%clk 0:02:54.8]}
4. Nf3 {[%clk 0:02:58.4]} 4... Bg4 {[%clk 0:02:53.6]} 5. h3 {[%clk 0:02:57]}
5... Bh5 {[%clk 0:02:53.8]} 6. Nbd2 {[%clk 0:02:53]} 6... a6 {[%clk 0:02:53.4]}
7. c4 {[%clk 0:02:49.7]} 7... e6 {[%clk 0:02:52.7]} 8. Qa4 {[%clk 0:02:47.9]}
8... Bd6 {[%clk 0:02:50]} 9. Ne5 {[%clk 0:02:48.3]} 9... Bxe5 {[%clk 0:02:48.1]}
10. Bxe5 {[%clk 0:02:32.8]} 10... O-O {[%clk 0:02:40.8]} 11. Bg3 {[%clk
0:02:26.9]} 11... Re8 {[%clk 0:02:35.7]} 12. Bd3 {[%clk 0:02:20.4]} 12... e5
{[%clk 0:02:32.2]} 13. dxe5 {[%clk 0:01:49.5]} 13... Nxe5 {[%clk 0:02:32.2]} 14.
Bxe5 {[%clk 0:01:48.2]} 14... Rxe5 {[%clk 0:02:31.8]} 15. O-O {[%clk 0:01:48.6]}
15... d4 {[%clk 0:02:13.2]} 16. e4 {[%clk 0:01:10.4]} 16... b5 {[%clk
0:01:59.9]} 17. Qc2 {[%clk 0:01:07.5]} 17... bxc4 {[%clk 0:01:52.7]} 18. Nxc4
{[%clk 0:01:08.1]} 18... Re8 {[%clk 0:01:49.2]} 19. f4 {[%clk 0:01:06.9]} 19...
c5 {[%clk 0:01:45.5]} 20. g4 {[%clk 0:01:04.4]} 20... Bxg4 {[%clk 0:01:41]} 21.
hxg4 {[%clk 0:01:05.3]} 21... Nxg4 {[%clk 0:01:41.8]} 22. Rf3 {[%clk 0:00:58.6]}
22... Re6 {[%clk 0:01:34.4]} 23. Qg2 {[%clk 0:00:53.9]} 23... Rg6 {[%clk
0:01:34.9]} 24. Rg3 {[%clk 0:00:51]} 24... Qh4 {[%clk 0:01:34]} 25. e5 {[%clk
0:00:47]} 25... Ne3 {[%clk 0:01:25]} 26. Qxa8+ {[%clk 0:00:44.8]} 26... Qd8
{[%clk 0:01:09.8]} 27. Qxd8# {[%clk 0:00:46.7]} 1-0

[Event "*** Titled Tuesday 3|2 Blitz"]
[Site "Chess.com"]
[Date "2016.06.07"]
[Round "6"]
[White "TheLancer"]
[Black "bugsbunny444"]
[Result "1-0"]
[WhiteElo "2464"]
[BlackElo "2365"]
[TimeControl "180+2"]
[EndTime "12:13:50 PDT"]
[Termination "TheLancer won by resignation"]

1. e4 {[%clk 0:02:39.7]} 1... e6 {[%clk 0:03:00.8]} 2. d4 {[%clk 0:02:39.6]}
2... d5 {[%clk 0:03:02.3]} 3. Nc3 {[%clk 0:02:40.3]} 3... Nf6 {[%clk 0:03:03.1]}
4. Bg5 {[%clk 0:02:40.8]} 4... Bb4 {[%clk 0:03:03.6]} 5. e5 {[%clk 0:02:42]}
5... h6 {[%clk 0:03:05.1]} 6. Be3 {[%clk 0:02:43.4]} 6... Ne4 {[%clk 0:03:06]}
7. Qg4 {[%clk 0:02:45.1]} 7... g6 {[%clk 0:03:07]} 8. a3 {[%clk 0:02:44.5]} 8...
Bxc3+ {[%clk 0:03:08]} 9. bxc3 {[%clk 0:02:45.6]} 9... Nxc3 {[%clk 0:03:09.9]}
10. Bd3 {[%clk 0:02:47]} 10... Qe7 {[%clk 0:03:10.5]} 11. h4 {[%clk 0:02:44.1]}
11... Nc6 {[%clk 0:03:11.5]} 12. h5 {[%clk 0:02:44.3]} 12... g5 {[%clk 0:03:13]}
13. f4 {[%clk 0:02:41.3]} 13... gxf4 {[%clk 0:03:14]} 14. Qxf4 {[%clk
0:02:43.2]} 14... Bd7 {[%clk 0:03:14.6]} 15. Ne2 {[%clk 0:02:37]} 15... Nxe2
{[%clk 0:03:14.1]} 16. Bxe2 {[%clk 0:02:37.8]} 16... O-O-O {[%clk 0:03:13.6]}
17. Rf1 {[%clk 0:02:30.2]} 17... Rdg8 {[%clk 0:03:10.5]} 18. g4 {[%clk
0:02:29.4]} 18... Qh4+ {[%clk 0:02:33.1]} 19. Kd2 {[%clk 0:02:25.8]} 19... Be8
{[%clk 0:02:14.9]} 20. Qf6 {[%clk 0:02:00]} 20... Qh2 {[%clk 0:01:25.8]} 21. Rh1
{[%clk 0:00:58.1]} 21... Qg2 {[%clk 0:01:26.4]} 22. Rag1 {[%clk 0:00:58]} 22...
Qe4 {[%clk 0:01:27]} 23. Bd3 {[%clk 0:00:57.1]} 1-0

[Event "*** Titled Tuesday 3|2 Blitz"]
[Site "Chess.com"]
[Date "2016.06.07"]
[Round "6"]
[White "FCChelsea14"]
[Black "kpio91"]
[Result "0-1"]
[WhiteElo "2411"]
[BlackElo "2535"]
[TimeControl "180+2"]
[EndTime "12:13:52 PDT"]
[Termination "kpio91 won by resignation"]

1. d4 {[%clk 0:03:00.7]} 1... g6 {[%clk 0:03:00.6]} 2. Nf3 {[%clk 0:03:01.7]}
2... Bg7 {[%clk 0:03:02.2]} 3. c4 {[%clk 0:03:02.9]} 3... d6 {[%clk 0:03:02.9]}
4. Nc3 {[%clk 0:03:04.1]} 4... f5 {[%clk 0:03:04]} 5. g3 {[%clk 0:03:04.4]} 5...
Nf6 {[%clk 0:03:04.8]} 6. Bg2 {[%clk 0:03:05.7]} 6... O-O {[%clk 0:03:06.4]} 7.
O-O {[%clk 0:03:06.8]} 7... c6 {[%clk 0:03:08.1]} 8. Re1 {[%clk 0:03:08.1]} 8...
Ne4 {[%clk 0:03:08.7]} 9. Bd2 {[%clk 0:03:06.1]} 9... Nxd2 {[%clk 0:03:01.7]}
10. Qxd2 {[%clk 0:03:06.8]} 10... e5 {[%clk 0:03:03.3]} 11. e4 {[%clk
0:02:59.9]} 11... exd4 {[%clk 0:02:59.4]} 12. Nxd4 {[%clk 0:03:00.3]} 12... f4
{[%clk 0:02:30.4]} 13. Rad1 {[%clk 0:02:57.5]} 13... fxg3 {[%clk 0:02:22.6]} 14.
hxg3 {[%clk 0:02:58.3]} 14... Na6 {[%clk 0:02:24.3]} 15. Nc2 {[%clk 0:02:56.2]}
15... Be6 {[%clk 0:02:23.8]} 16. Ne3 {[%clk 0:02:56.4]} 16... Qf6 {[%clk
0:02:18]} 17. f4 {[%clk 0:02:45]} 17... Rad8 {[%clk 0:02:17.3]} 18. Bf3 {[%clk
0:02:40.1]} 18... h5 {[%clk 0:02:09.2]} 19. Rf1 {[%clk 0:02:23.5]} 19... Bf7
{[%clk 0:01:53]} 20. Bg2 {[%clk 0:02:15.7]} 20... Qe7 {[%clk 0:01:52.5]} 21.
Rfe1 {[%clk 0:02:06.6]} 21... Nc5 {[%clk 0:01:47.7]} 22. Qc2 {[%clk 0:01:59.4]}
22... a5 {[%clk 0:01:39.7]} 23. b3 {[%clk 0:01:56.7]} 23... Qf6 {[%clk
0:01:30.1]} 24. Ne2 {[%clk 0:01:57]} 24... Rfe8 {[%clk 0:01:30.9]} 25. Nd4
{[%clk 0:01:53.1]} 25... h4 {[%clk 0:01:28.1]} 26. Ng4 {[%clk 0:01:41.8]} 26...
Qe7 {[%clk 0:01:27.6]} 27. e5 {[%clk 0:01:33.5]} 27... hxg3 {[%clk 0:01:12.3]}
28. Nf3 {[%clk 0:01:29.2]} 28... dxe5 {[%clk 0:01:08.4]} 29. Rxd8 {[%clk
0:01:27.5]} 29... Rxd8 {[%clk 0:01:09.4]} 30. Ngxe5 {[%clk 0:01:28.2]} 30... Ne6
{[%clk 0:01:08.9]} 31. Nxg6 {[%clk 0:01:20.8]} 31... Qc5+ {[%clk 0:01:08.1]} 32.
Kf1 {[%clk 0:01:14.8]} 32... Bxg6 {[%clk 0:01:08.2]} 0-1

[Event "*** Titled Tuesday 3|2 Blitz"]
[Site "Chess.com"]
[Date "2016.06.07"]
[Round "6"]
[White "cassoulet"]
[Black "MateusViageiro"]
[Result "0-1"]
[WhiteElo "2311"]
[BlackElo "2308"]
[TimeControl "180+2"]
[EndTime "12:14:03 PDT"]
[Termination "MateusViageiro won by resignation"]

1. e4 {[%clk 0:03:01.9]} 1... c5 {[%clk 0:02:58.3]} 2. Nf3 {[%clk 0:03:02.2]}
2... d6 {[%clk 0:02:59.6]} 3. Bb5+ {[%clk 0:03:02.6]} 3... Nd7 {[%clk
0:02:59.3]} 4. O-O {[%clk 0:03:03.5]} 4... Nf6 {[%clk 0:02:59.5]} 5. Re1 {[%clk
0:03:04]} 5... a6 {[%clk 0:03:00.3]} 6. Bf1 {[%clk 0:03:04.6]} 6... g6 {[%clk
0:03:00.8]} 7. c3 {[%clk 0:03:05.1]} 7... Bg7 {[%clk 0:03:01.8]} 8. d4 {[%clk
0:03:06.3]} 8... cxd4 {[%clk 0:03:02.1]} 9. cxd4 {[%clk 0:03:06.7]} 9... O-O
{[%clk 0:03:04]} 10. Nc3 {[%clk 0:03:05.6]} 10... e5 {[%clk 0:02:59.2]} 11. Bg5
{[%clk 0:03:04.3]} 11... h6 {[%clk 0:02:56.8]} 12. Be3 {[%clk 0:03:04.5]} 12...
b5 {[%clk 0:02:53.7]} 13. h3 {[%clk 0:03:04.9]} 13... Bb7 {[%clk 0:02:53.9]} 14.
Qd3 {[%clk 0:03:05.6]} 14... Rc8 {[%clk 0:02:52.9]} 15. Rad1 {[%clk 0:03:06]}
15... b4 {[%clk 0:02:53.3]} 16. dxe5 {[%clk 0:03:06.6]} 16... dxe5 {[%clk
0:02:23.3]} 17. Nd5 {[%clk 0:03:05.8]} 17... Bxd5 {[%clk 0:02:21.7]} 18. exd5
{[%clk 0:03:07.7]} 18... e4 {[%clk 0:02:22.9]} 19. Qxa6 {[%clk 0:03:08.3]} 19...
exf3 {[%clk 0:02:23.8]} 20. g3 {[%clk 0:03:07.5]} 20... Ra8 {[%clk 0:02:13.7]}
21. Qc4 {[%clk 0:03:07.7]} 21... Qa5 {[%clk 0:02:13]} 22. d6 {[%clk 0:02:51]}
22... Qxa2 {[%clk 0:02:12.1]} 23. Qxb4 {[%clk 0:02:52.1]} 23... Rab8 {[%clk
0:02:07.6]} 24. Qf4 {[%clk 0:02:50]} 24... Qxb2 {[%clk 0:01:50.5]} 25. Bd4
{[%clk 0:02:48.8]} 25... Qb4 {[%clk 0:01:46]} 26. Re7 {[%clk 0:02:46.6]} 26...
Nd5 {[%clk 0:01:44.2]} 27. Qxf3 {[%clk 0:02:44.3]} 27... Nxe7 {[%clk 0:01:43.4]}
28. Bxg7 {[%clk 0:02:44.5]} 28... Kxg7 {[%clk 0:01:41.2]} 29. dxe7 {[%clk
0:02:44.8]} 29... Qxe7 {[%clk 0:01:41.5]} 30. h4 {[%clk 0:02:44.4]} 30... Ne5
{[%clk 0:01:40.9]} 31. Qf4 {[%clk 0:02:45.4]} 31... Qf6 {[%clk 0:01:40.9]} 32.
Qa4 {[%clk 0:02:44.6]} 32... Nf3+ {[%clk 0:01:38.7]} 33. Kh1 {[%clk 0:02:45.4]}
33... Rb2 {[%clk 0:01:35.8]} 34. Qa7 {[%clk 0:02:44.9]} 34... Nd2 {[%clk
0:01:32.9]} 35. Bg2 {[%clk 0:02:44.7]} 35... Re8 {[%clk 0:01:24.1]} 36. Qc5
{[%clk 0:02:43.7]} 36... Ne4 {[%clk 0:01:21.1]} 37. Bxe4 {[%clk 0:02:42.7]}
37... Rxe4 {[%clk 0:01:19.9]} 38. Kg2 {[%clk 0:02:44.6]} 38... Ree2 {[%clk
0:01:20]} 39. Rf1 {[%clk 0:02:45.2]} 39... Rec2 {[%clk 0:01:17.9]} 40. Qa7
{[%clk 0:02:45.8]} 40... h5 {[%clk 0:01:18.2]} 41. Qe3 {[%clk 0:02:45.7]} 41...
Qc3 {[%clk 0:01:16.1]} 42. Qf4 {[%clk 0:02:42.9]} 42... Qc6+ {[%clk 0:01:15]}
43. Kh3 {[%clk 0:02:44]} 43... Qe6+ {[%clk 0:01:15.2]} 44. Kg2 {[%clk
0:02:45.1]} 44... Qc6+ {[%clk 0:01:15.9]} 45. Kh3 {[%clk 0:02:45.4]} 45... Qf6
{[%clk 0:01:16.7]} 46. Qe3 {[%clk 0:02:38.9]} 46... Rxf2 {[%clk 0:01:16.8]} 47.
Rxf2 {[%clk 0:02:35]} 47... Rxf2 {[%clk 0:01:17.5]} 48. Qe4 {[%clk 0:02:26.7]}
48... Qf5+ {[%clk 0:01:17.7]} 0-1

[Event "*** Titled Tuesday 3|2 Blitz"]
[Site "Chess.com"]
[Date "2016.06.07"]
[Round "6"]
[White "hansen"]
[Black "ShimanovAlex"]
[Result "1-0"]
[WhiteElo "2570"]
[BlackElo "2643"]
[TimeControl "180+2"]
[EndTime "12:14:41 PDT"]
[Termination "hansen won by resignation"]

1. e4 {[%clk 0:02:59.4]} 1... Nf6 {[%clk 0:02:59.3]} 2. e5 {[%clk 0:02:59.6]}
2... Nd5 {[%clk 0:03:00.3]} 3. d4 {[%clk 0:02:57]} 3... d6 {[%clk 0:02:53.8]} 4.
Nf3 {[%clk 0:02:49.7]} 4... dxe5 {[%clk 0:02:52.6]} 5. Nxe5 {[%clk 0:02:48.7]}
5... c6 {[%clk 0:02:53.8]} 6. c3 {[%clk 0:02:37.9]} 6... Nd7 {[%clk 0:02:50]} 7.
Nxd7 {[%clk 0:02:30.3]} 7... Bxd7 {[%clk 0:02:50.4]} 8. Nd2 {[%clk 0:02:32.1]}
8... g6 {[%clk 0:02:51]} 9. Nf3 {[%clk 0:02:33]} 9... Bg7 {[%clk 0:02:51.9]} 10.
Bc4 {[%clk 0:02:34.8]} 10... O-O {[%clk 0:02:52.7]} 11. O-O {[%clk 0:02:36.3]}
11... Bg4 {[%clk 0:02:51.8]} 12. h3 {[%clk 0:02:36.9]} 12... Bxf3 {[%clk
0:02:53.2]} 13. Qxf3 {[%clk 0:02:38.8]} 13... e6 {[%clk 0:02:54.8]} 14. g3
{[%clk 0:02:38]} 14... Rc8 {[%clk 0:02:50.1]} 15. Kg2 {[%clk 0:02:38.8]} 15...
Qb6 {[%clk 0:02:48.5]} 16. h4 {[%clk 0:02:35.4]} 16... h5 {[%clk 0:02:49.2]} 17.
Bb3 {[%clk 0:02:33.4]} 17... a5 {[%clk 0:02:46.4]} 18. Rb1 {[%clk 0:02:30.8]}
18... Qa6 {[%clk 0:02:42.6]} 19. Bc2 {[%clk 0:02:27.4]} 19... b5 {[%clk
0:02:39.7]} 20. Bg5 {[%clk 0:02:14.5]} 20... c5 {[%clk 0:02:38.8]} 21. dxc5
{[%clk 0:02:07.8]} 21... Rxc5 {[%clk 0:02:40.7]} 22. Rfd1 {[%clk 0:02:05.8]}
22... Re8 {[%clk 0:02:17.2]} 23. Be4 {[%clk 0:02:05.6]} 23... Qc6 {[%clk
0:02:09.4]} 24. Rd2 {[%clk 0:01:52.4]} 24... f5 {[%clk 0:01:43.5]} 25. Bxd5
{[%clk 0:01:51.9]} 25... exd5 {[%clk 0:01:40.1]} 26. Rbd1 {[%clk 0:01:47.8]}
26... Re4 {[%clk 0:01:40.6]} 27. Be3 {[%clk 0:01:45.9]} 27... Rcc4 {[%clk
0:01:31.4]} 28. Rxd5 {[%clk 0:01:45.6]} 28... b4 {[%clk 0:01:32.6]} 29. cxb4
{[%clk 0:00:58]} 29... axb4 {[%clk 0:01:30.5]} 30. Rd6 {[%clk 0:00:54]} 30...
Qb7 {[%clk 0:00:57.8]} 31. Rxg6 {[%clk 0:00:44.8]} 31... Rc2 {[%clk 0:00:44]}
32. Rd8+ {[%clk 0:00:38.5]} 32... Kf7 {[%clk 0:00:44.5]} 1-0

[Event "*** Titled Tuesday 3|2 Blitz"]
[Site "Chess.com"]
[Date "2016.06.07"]
[Round "6"]
[White "akinov-akinseye"]
[Black "SloLev"]
[Result "0-1"]
[WhiteElo "1705"]
[BlackElo "2100"]
[TimeControl "180+2"]
[EndTime "12:15:04 PDT"]
[Termination "SloLev won by checkmate"]

1. e4 {[%clk 0:03:01.9]} 1... c5 {[%clk 0:03:00.8]} 2. Nf3 {[%clk 0:03:02.7]}
2... e6 {[%clk 0:03:01.9]} 3. d4 {[%clk 0:03:04.1]} 3... cxd4 {[%clk 0:03:02.7]}
4. Nxd4 {[%clk 0:03:05.2]} 4... a6 {[%clk 0:03:04.4]} 5. Be2 {[%clk 0:03:06]}
5... Qc7 {[%clk 0:03:05.9]} 6. O-O {[%clk 0:03:05.3]} 6... Nf6 {[%clk
0:03:05.2]} 7. Nc3 {[%clk 0:03:04.8]} 7... Bb4 {[%clk 0:03:05.2]} 8. Bd3 {[%clk
0:02:59.2]} 8... Bxc3 {[%clk 0:02:46.9]} 9. bxc3 {[%clk 0:02:59.3]} 9... Qxc3
{[%clk 0:02:48.5]} 10. Ne2 {[%clk 0:02:53.3]} 10... Qxa1 {[%clk 0:02:46.8]} 11.
Nf4 {[%clk 0:02:41.6]} 11... Nc6 {[%clk 0:02:45.4]} 12. Qf3 {[%clk 0:02:28.8]}
12... Qe5 {[%clk 0:02:36.6]} 13. Qe2 {[%clk 0:02:17.1]} 13... d5 {[%clk
0:02:32.1]} 14. exd5 {[%clk 0:02:15.8]} 14... Qxe2 {[%clk 0:02:32.3]} 15. Nxe2
{[%clk 0:02:14.5]} 15... Nxd5 {[%clk 0:02:33.1]} 16. Ng3 {[%clk 0:02:14.6]}
16... O-O {[%clk 0:02:32.4]} 17. Ne4 {[%clk 0:02:13.2]} 17... b5 {[%clk
0:02:31.1]} 18. Ng5 {[%clk 0:02:13.6]} 18... h6 {[%clk 0:02:30.3]} 19. Nf3
{[%clk 0:02:13.9]} 19... Bb7 {[%clk 0:02:28.3]} 20. h3 {[%clk 0:02:12.1]} 20...
Rfd8 {[%clk 0:02:27.3]} 21. Bb2 {[%clk 0:02:07.8]} 21... Rac8 {[%clk 0:02:27.6]}
22. Nh2 {[%clk 0:02:06.6]} 22... Ncb4 {[%clk 0:02:28]} 23. Be4 {[%clk
0:02:02.4]} 23... Nxc2 {[%clk 0:02:26.8]} 24. Rc1 {[%clk 0:02:01.5]} 24... Ncb4
{[%clk 0:02:25]} 25. Rd1 {[%clk 0:01:57.8]} 25... Nxa2 {[%clk 0:02:24.4]} 26.
Be5 {[%clk 0:01:54]} 26... Nac3 {[%clk 0:02:23.7]} 27. Bxc3 {[%clk 0:01:28]}
27... Rxc3 {[%clk 0:02:21.6]} 28. Bf3 {[%clk 0:01:25.6]} 28... Rdc8 {[%clk
0:02:22.1]} 29. Ng4 {[%clk 0:01:23]} 29... Rc1 {[%clk 0:02:22.7]} 30. Kh2 {[%clk
0:01:22.1]} 30... Rxd1 {[%clk 0:02:22.9]} 31. Bxd1 {[%clk 0:01:21.9]} 31... Nc3
{[%clk 0:02:22.6]} 32. Bb3 {[%clk 0:01:21.7]} 32... a5 {[%clk 0:02:22.4]} 33.
Ne5 {[%clk 0:01:21.5]} 33... a4 {[%clk 0:02:23.7]} 34. Bc2 {[%clk 0:01:20.1]}
34... b4 {[%clk 0:02:22.6]} 35. Bxa4 {[%clk 0:01:20.6]} 35... Nxa4 {[%clk
0:02:22.3]} 36. Nd3 {[%clk 0:01:20.4]} 36... b3 {[%clk 0:02:22.9]} 37. f3 {[%clk
0:01:21.3]} 37... b2 {[%clk 0:02:23.9]} 38. Nxb2 {[%clk 0:01:22.4]} 38... Nxb2
{[%clk 0:02:25.8]} 39. h4 {[%clk 0:01:22.2]} 39... Nd3 {[%clk 0:02:26.7]} 40. g4
{[%clk 0:00:52.3]} 40... Bxf3 {[%clk 0:02:17.6]} 41. Kg3 {[%clk 0:00:45.6]}
41... Ne5 {[%clk 0:02:16]} 42. Kf4 {[%clk 0:00:44.5]} 42... f6 {[%clk
0:02:14.7]} 43. g5 {[%clk 0:00:43.7]} 43... Rc4+ {[%clk 0:02:15.4]} 44. Kg3
{[%clk 0:00:43]} 44... Rg4+ {[%clk 0:02:15.9]} 45. Kh3 {[%clk 0:00:43.1]} 45...
hxg5 {[%clk 0:02:17.1]} 46. hxg5 {[%clk 0:00:43.7]} 46... Rxg5 {[%clk
0:02:18.2]} 47. Kh4 {[%clk 0:00:43.5]} 47... Ng6+ {[%clk 0:02:17]} 48. Kh3
{[%clk 0:00:43.2]} 48... Nf4+ {[%clk 0:02:16.8]} 49. Kh4 {[%clk 0:00:43.3]}
49... Ne2 {[%clk 0:02:16.2]} 50. Kh3 {[%clk 0:00:43]} 50... Kh7 {[%clk
0:02:17.5]} 51. Kh4 {[%clk 0:00:43.6]} 51... Kg6 {[%clk 0:02:18.9]} 52. Kh3
{[%clk 0:00:44.8]} 52... Kf5 {[%clk 0:02:20.2]} 53. Kh4 {[%clk 0:00:46.1]} 53...
Rh5# {[%clk 0:02:20.8]} 0-1

[Event "*** Titled Tuesday 3|2 Blitz"]
[Site "Chess.com"]
[Date "2016.06.07"]
[Round "6"]
[White "Abdodi"]
[Black "Mvpag"]
[Result "1-0"]
[WhiteElo "1994"]
[BlackElo "2102"]
[TimeControl "180+2"]
[EndTime "12:15:04 PDT"]
[Termination "Abdodi won on time"]

1. d4 {[%clk 0:03:00.4]} 1... d5 {[%clk 0:02:59.6]} 2. c4 {[%clk 0:02:39.4]}
2... e6 {[%clk 0:03:00.5]} 3. e3 {[%clk 0:02:39.3]} 3... Nf6 {[%clk 0:03:01.9]}
4. Nc3 {[%clk 0:02:39.9]} 4... Be7 {[%clk 0:03:03.4]} 5. Nf3 {[%clk 0:02:36.5]}
5... Nbd7 {[%clk 0:03:02.1]} 6. Be2 {[%clk 0:02:37.1]} 6... O-O {[%clk
0:03:00.7]} 7. O-O {[%clk 0:02:37.3]} 7... b6 {[%clk 0:03:02]} 8. cxd5 {[%clk
0:02:32.7]} 8... exd5 {[%clk 0:03:01.4]} 9. Ne5 {[%clk 0:02:33.2]} 9... Bb7
{[%clk 0:02:59.3]} 10. Bb5 {[%clk 0:02:27]} 10... Nxe5 {[%clk 0:02:57.9]} 11.
dxe5 {[%clk 0:02:25.6]} 11... Nd7 {[%clk 0:02:42.1]} 12. f4 {[%clk 0:02:14.3]}
12... Nc5 {[%clk 0:02:36.2]} 13. Ne2 {[%clk 0:02:05.1]} 13... Ne4 {[%clk
0:02:30.5]} 14. Nd4 {[%clk 0:02:02.3]} 14... c5 {[%clk 0:02:27.1]} 15. Nf5
{[%clk 0:01:54.5]} 15... g6 {[%clk 0:02:07.3]} 16. Ng3 {[%clk 0:01:47.2]} 16...
Nxg3 {[%clk 0:01:55.5]} 17. hxg3 {[%clk 0:01:49.1]} 17... a6 {[%clk 0:01:50]}
18. Bd3 {[%clk 0:01:45.7]} 18... d4 {[%clk 0:01:48.6]} 19. e4 {[%clk 0:01:43.9]}
19... b5 {[%clk 0:01:42.4]} 20. b3 {[%clk 0:01:44.3]} 20... Rc8 {[%clk
0:01:42.2]} 21. Qe2 {[%clk 0:01:40.8]} 21... Qc7 {[%clk 0:01:33.9]} 22. Ba3
{[%clk 0:01:34.8]} 22... Rfe8 {[%clk 0:01:25.9]} 23. Rac1 {[%clk 0:01:29.9]}
23... Qb6 {[%clk 0:01:24.7]} 24. f5 {[%clk 0:01:25.5]} 24... c4 {[%clk
0:01:22.6]} 25. Bxe7 {[%clk 0:01:17.5]} 25... cxd3 {[%clk 0:01:19.8]} 26. Rxc8
{[%clk 0:01:09.1]} 26... Bxc8 {[%clk 0:01:08.7]} 27. Qd2 {[%clk 0:01:02.7]}
27... Bb7 {[%clk 0:00:07.7]} 28. f6 {[%clk 0:00:57]} 28... Kh8 {[%clk
0:00:03.9]} 29. Qh6 {[%clk 0:00:54.3]} 29... Rg8 {[%clk 0:00:04.8]} 30. Bf8
{[%clk 0:00:55.1]} 1-0

[Event "*** Titled Tuesday 3|2 Blitz"]
[Site "Chess.com"]
[Date "2016.06.07"]
[Round "6"]
[White "kikydu96"]
[Black "Wolverine_master"]
[Result "1-0"]
[WhiteElo "2342"]
[BlackElo "2089"]
[TimeControl "180+2"]
[EndTime "12:15:15 PDT"]
[Termination "kikydu96 won by resignation"]

1. e4 {[%clk 0:03:01.9]} 1... e5 {[%clk 0:02:51]} 2. Nf3 {[%clk 0:02:45]} 2...
Nc6 {[%clk 0:02:43.2]} 3. d4 {[%clk 0:02:44.9]} 3... exd4 {[%clk 0:02:44]} 4.
Nxd4 {[%clk 0:02:46.8]} 4... Bc5 {[%clk 0:02:44.5]} 5. Be3 {[%clk 0:02:47.1]}
5... Qf6 {[%clk 0:02:44.4]} 6. Nb5 {[%clk 0:02:48.6]} 6... Bxe3 {[%clk 0:02:39]}
7. fxe3 {[%clk 0:02:50.5]} 7... Qd8 {[%clk 0:02:31.4]} 8. Qg4 {[%clk 0:02:51]}
8... g6 {[%clk 0:02:29.8]} 9. Qg3 {[%clk 0:02:52]} 9... d6 {[%clk 0:02:29.5]}
10. N1c3 {[%clk 0:02:53.6]} 10... a6 {[%clk 0:02:26.1]} 11. Nd4 {[%clk
0:02:54.2]} 11... Nge7 {[%clk 0:02:25.7]} 12. O-O-O {[%clk 0:02:53.9]} 12... b5
{[%clk 0:02:14.8]} 13. Be2 {[%clk 0:02:48.3]} 13... b4 {[%clk 0:02:12.5]} 14.
Nd5 {[%clk 0:02:48.7]} 14... Nxd5 {[%clk 0:01:59.9]} 15. Nxc6 {[%clk 0:02:49.6]}
15... Nc3 {[%clk 0:01:17.3]} 16. bxc3 {[%clk 0:02:30.9]} 16... Qd7 {[%clk
0:00:59.6]} 17. Nxb4 {[%clk 0:02:07.7]} 17... Qa4 {[%clk 0:00:50.8]} 18. e5
{[%clk 0:02:02.4]} 18... O-O {[%clk 0:00:46]} 19. Rhf1 {[%clk 0:01:43.2]} 19...
Be6 {[%clk 0:00:41]} 20. exd6 {[%clk 0:01:44.1]} 20... a5 {[%clk 0:00:32.6]} 21.
Nd3 {[%clk 0:01:43.9]} 21... cxd6 {[%clk 0:00:22.6]} 22. Qxd6 {[%clk 0:01:23.8]}
22... Rac8 {[%clk 0:00:22.9]} 23. Kd2 {[%clk 0:01:24]} 23... Qxa2 {[%clk
0:00:17.6]} 24. Ra1 {[%clk 0:01:21.7]} 24... Qc4 {[%clk 0:00:15.6]} 25. Qa3
{[%clk 0:01:20.1]} 25... Rfd8 {[%clk 0:00:15]} 26. Qxa5 {[%clk 0:01:20.2]} 26...
Rd5 {[%clk 0:00:11.1]} 27. Qb4 {[%clk 0:01:20.7]} 27... Qc7 {[%clk 0:00:11.5]}
28. Bf3 {[%clk 0:01:19.4]} 28... Rdd8 {[%clk 0:00:10.6]} 29. Ra3 {[%clk
0:01:14.4]} 29... Bc4 {[%clk 0:00:11.4]} 30. Rfa1 {[%clk 0:01:13.2]} 30... Bxd3
{[%clk 0:00:08.6]} 31. cxd3 {[%clk 0:01:14.3]} 31... Qxh2 {[%clk 0:00:09.3]} 32.
Ra7 {[%clk 0:01:13]} 32... Qg3 {[%clk 0:00:10.1]} 33. Ke2 {[%clk 0:01:12.9]}
33... Qe5 {[%clk 0:00:06.3]} 34. Qe7 {[%clk 0:01:11.2]} 34... Qxe7 {[%clk
0:00:07.1]} 35. Rxe7 {[%clk 0:01:13.1]} 35... Rxc3 {[%clk 0:00:08.2]} 36. d4
{[%clk 0:01:13.2]} 36... Rc2+ {[%clk 0:00:07.1]} 37. Kd3 {[%clk 0:01:14.3]}
37... Kf8 {[%clk 0:00:06.2]} 38. Raa7 {[%clk 0:01:15.5]} 1-0